Cogmind - Beta 14 @@@ ROGUE MODE // 2025.03.04 @ 18:10:44 Player: ywiktor Result: Destroyed by F6-QN2(R) with Subdweller Machine Gun Performance ------------- Evolutions (0) 0 Regions Visited (2) 400 Robots Destroyed (31) 155 Value Destroyed (892) 892 Prototype IDs (3) 60 Alien Tech Used (0) 0 Bonus (-53) -53 TOTAL SCORE: 1454 Bonus ------- Friendly Fire -53 Cogmind --------- Core Integrity 0/250 Matter 294/300 Energy 95/100 System Corruption 0% Temperature Cool (0) Movement Rolling (110) Location -10/Subcaves Parts ------- > --- POWER (1) -------- (None) > --- PROPULSION (2) --- Subdweller Monowheel > --- UTILITY (2) ------ Makeshift Light Armor Plating > --- WEAPON (2) ------- Small Laser Heavy Battle Rifle > --- INVENTORY (5) ---- Improved Heat Sink Sensor Array Heavy Assault Rifle Piercing Trap Peak State ------------ > --- POWER ------------ Subdweller Power Source > --- PROPULSION ------- Aluminum Leg Aluminum Leg > --- UTILITY ---------- Disposable Heat Sink Subdweller Optics Rainbow Chip > --- WEAPON ----------- Subdweller Machine Gun Subdweller Machine Gun Grenade Launcher > --- INVENTORY -------- Improved Heat Sink Sensor Array Heavy Assault Rifle Heavy Battle Rifle Piercing Trap [Rating: 27] Favorites ----------- Power Ion Engine Engine Ion Engine Propulsion Aluminum Leg Leg Aluminum Leg Wheel Subdweller Monowheel Utility Small Storage Unit Device Tractor Beam Storage Small Storage Unit Processor Rainbow Chip Protection Makeshift Light Armor Plating Weapon Subdweller Machine Gun Energy Gun Particle Gun Energy Cannon Light EM Pulse Cannon Ballistic Gun Subdweller Machine Gun Launcher Grenade Launcher Build | -11 -10 -10 ------- Run | Yrd Mat Sub Slots Evolved . | . . . Power . | . . . Propulsion . | . . . Utility . | . . . Weapon . | . . . Parts Attached 37 | 6 14 17 Power 5 | 1 2 2 Engine 5 | 1 2 2 Core . | . . . Reactor . | . . . Propulsion 9 | 2 4 3 Treads . | . . . Leg 8 | 2 4 2 Wheel 1 | . . 1 Hover . | . . . Flight . | . . . Utility 8 | 1 2 5 Device 3 | . 1 2 Storage 1 | 1 . . Processor 2 | . 1 1 Hackware . | . . . Protection 2 | . . 2 Artifact . | . . . Weapon 15 | 2 6 7 Energy Gun 5 | . 3 2 Energy Cannon 1 | . 1 . Ballistic Gun 7 | 2 2 3 Ballistic Cannon . | . . . Launcher 2 | . . 2 Special Weapon . | . . . Impact Weapon . | . . . Slashing Weapon . | . . . Piercing Weapon . | . . . Special Melee Weapon . | . . . Unidentified Prototypes 1 | . . 1 Parts Lost 13 | . 3 10 Power 3 | . 1 2 Propulsion 2 | . . 2 Utility 3 | . 1 2 Weapon 5 | . 1 4 Highest Loss Streak 5 | . 2 5 To Critical Strikes . | . . . Average Slot Usage (%) 85 | . 93 76 Engine 11 | . 14 9 Leg 24 | . 28 20 Device 2 | . 2 2 Storage 7 | . 14 . Processor 6 | . 6 6 Protection 4 | . . 8 Energy Gun 1 | . 3 . Energy Cannon 2 | . 4 . Ballistic Gun 18 | . 20 15 Launcher 5 | . . 10 Peak Build Rating 27 | 6 11 27 Average Rating 13 | 4 8 19 On Entrance 5 | . 6 11 Naked Turns . | . . . Heaviest Build 30 | 12 17 30 Greatest Support 20 | 20 20 20 Greatest Overweight (x) 1 | . . 1 Average Overweight (x) . | . . . Largest Inventory Capacity 8 | 8 8 8 Average Capacity 6 | 7 8 5 Most Carried 8 | 6 8 8 Average Carried 6 | 2 7 5 Final Capacity 8 | 8 8 5 Final Carried 8 | 6 8 4 Class Distribution -------------------- 62% | Mutant 19% | Scavenger-Tank 14% | Scavenger-Mutant 4% | Scavenger-Skirmisher Dominant Class ---------------- Mutant | -10/Materials Mutant | -10/Subcaves Resources | -11 -10 -10 ----------- Run | Yrd Mat Sub Matter Collected 977 | 219 397 361 Remotely 173 | . 173 . Salvage Created 1003 | . 616 387 Parts 65 | . 44 21 Haulers Intercepted . | . . . Recyclers Shooed . | . . . Parts Field Recycled . | . . . Retrieved Matter . | . . . Parts Self-Destructed 12 | . . 12 Prevented . | . . . Kills | -11 -10 -10 ------- Run | Yrd Mat Sub Combat Hostiles Destroyed 28 | . 17 11 Guns 15 | . 13 2 Cannons 3 | . 3 . AOE 8 | . 1 7 Classes Destroyed 5 | . 4 1 Operator 1 | . 1 . Watcher 2 | . 2 . Swarmer 8 | . 8 . Grunt 12 | . 9 3 Subdweller 8 | . . 8 Best Kill Streak 4 | . 4 3 Combat Bots Only 4 | . 4 3 Max Kills in Single Turn 1 | . 1 1 Gunslinging . | . . . Exploded 1 | . 1 1 Melee . | . . . Uniques/NPCs Destroyed . | . . . Combat | -11 -10 -10 -------- Run | Yrd Mat Sub Hostile Shots Fired 165 | . 98 67 Missed 44 | . 26 18 Damage Taken 1913 | . 774 1139 Core 270 | . 107 163 Absorbed by Shields . | . . . Core Remaining (%) 100 | 100 . . Volleys Fired 97 | . 57 40 Largest 2 | . 2 2 Hottest 85 | . 85 83 Shots Fired 169 | . 113 56 Gun 137 | . 104 33 Cannon 9 | . 9 . Launcher 23 | . . 23 Special . | . . . Kinetic 115 | . 88 27 Thermal 18 | . 16 2 Explosive 11 | . . 11 Electromagnetic 25 | . 9 16 Robot Hit Streak 15 | . 13 15 Robot Miss Streak 3 | . 3 3 Penetration Max . | . . . Secondary Targets . | . . . Shots Hit Robots 109 | . 72 37 Core Hits 50 | . 33 17 Critical Kills . | . . . Critical Parts Destroyed . | . . . Critical Strikes . | . . . Melee Attacks . | . . . Impact . | . . . Slashing . | . . . Piercing . | . . . Sneak Attacks . | . . . Combat Hostiles . | . . . Follow-up Attacks . | . . . Damage Inflicted 2412 | . 1041 1371 Guns 1064 | . 768 296 Cannons 170 | . 170 . Explosions 1178 | . 103 1075 Melee . | . . . Ramming . | . . . Kinetic 888 | . 652 236 Thermal 239 | . 219 20 Explosive 718 | . . 718 Electromagnetic 567 | . 170 397 Impact . | . . . Slashing . | . . . Piercing . | . . . Highest Corruption . | . . . Average Corruption . | . . . Corruption Purged . | . . . Corruption Blocked . | . . . Overload Shots . | . . . Overflow Damage 3 | . . 3 Projectiles . | . . . Explosions 3 | . . 3 Melee . | . . . Knockbacks . | . . . Impact . | . . . Kinetic . | . . . Secondary . | . . . Self-Inflicted Damage 100 | . 48 52 Shots 5 | . 1 4 Rammed . | . . . Targets Rammed 1 | . 1 . Kicked 1 | . 1 . Crushed . | . . . Highest Temperature 160 | . 160 . Average Temperature 45 | . 45 . Received Heat Transfer 462 | . 273 189 Siege Activations . | . . . Robots Corrupted 2 | . . 2 Combat Hostiles 2 | . . 2 Parts Fried 6 | . . 6 Impact Corruptions . | . . . Robots Melted . | . . . Combat Hostiles . | . . . Parts Melted . | . . . Heat Transferred 422 | . 372 50 Parts Sabotaged . | . . . Parts Stolen . | . . . Parts Stripped . | . . . Power Chain Reactions 1 | . 1 . Alert | -11 -10 -10 ------- Run | Yrd Mat Sub Peak Influence 311 | . 311 . Initial . | . . . Average 110 | . 115 . Maximum Alert Level 1 | . 1 . Low Security (%) 88 | 100 87 . Level 1 11 | . 12 . Level 2 . | . . . Level 3 . | . . . Level 4 . | . . . Level 5 . | . . . High Security . | . . . Max Security . | . . . Squads Dispatched 2 | . 2 . Investigation 1 | . 1 . Extermination . | . . . Reinforcement 1 | . 1 . Assault . | . . . Garrison . | . . . Intercept . | . . . Searches Triggered . | . . . Construction Impeded . | . . . Haulers Reinforced . | . . . Active Scanning Responses . | . . . Cargo Convoy Interrupts . | . . . Stealth | -11 -10 -10 --------- Run | Yrd Mat Sub Distress Signals 4 | . 4 . Communications Jammed . | . . . Distress Signals . | . . . Times Spotted 51 | . 36 15 Peak Tracking Total 7 | . 7 3 Tactical Retreats 5 | . 4 1 Traps | -11 -10 -10 ------- Run | Yrd Mat Sub Traps Triggered 2 | . 2 . Indirectly . | . . . Trap Hack Attempts . | . . . Triggered . | . . . Disarmed . | . . . Reprogrammed . | . . . Reused . | . . . Traps Extracted . | . . . Installed . | . . . Triggered 2 | . . 2 Most Traps Carried 1 | . . 1 Machines | -11 -10 -10 ---------- Run | Yrd Mat Sub Machines Disabled . | . . . Max in Single Turn . | . . . Machines Repaired . | . . . Machines Dismantled . | . . . Machines Sabotaged . | . . . Overloaded Fab Kills . | . . . Hacking | -11 -10 -10 --------- Run | Yrd Mat Sub Machines Accessed 9 | . 8 1 Terminals 7 | . 7 . Fabricators . | . . . Repair Stations . | . . . Recycling Units 1 | . 1 . Scanalyzers . | . . . Garrison Access . | . . . Total Hacks 27 | . 23 4 Successful 15 | . 11 4 Failed 11 | . 11 . Catastrophic . | . . . Database Lockouts 1 | . 1 . Manual 19 | . 19 . Terminals 21 | . 21 . Fabricators . | . . . Repair Stations . | . . . Recycling Units 2 | . 2 . Scanalyzers . | . . . Garrison Access . | . . . Terminal Hacks 9 | . 5 4 Record 4 | . . 4 Robot Analysis 1 | . 1 . Prototype ID Bank 1 | . 1 . Branch Access Points 1 | . 1 . Dispatch Records 1 | . 1 . Hauler Manifests 1 | . 1 . Fabricator Hacks . | . . . Repair Station Hacks . | . . . Recycling Unit Hacks 1 | . 1 . Report Inventory 1 | . 1 . Scanalyzer . | . . . Garrison Access Hacks . | . . . Unauthorized Hacks 5 | . 5 . Terminals 5 | . 5 . Assimilate 1 | . 1 . Botnet 4 | . 4 . Fabricators . | . . . Repair Stations . | . . . Recycling Units . | . . . Scanalyzers . | . . . Garrison Access . | . . . Data Cores Recovered . | . . . Used . | . . . Hacking Detections 5 | . 5 . Full Trace Events . | . . . Feedback Events . | . . . Feedback Blocked . | . . . Robot Schematics Acquired . | . . . Robots Built . | . . . Authchips . | . . . Time . | . . . Total Robot Build Rating . | . . . Part Schematics Acquired . | . . . Parts Built . | . . . Authchips . | . . . Time . | . . . Total Part Build Rating . | . . . Parts Repaired . | . . . Time . | . . . Parts Recycled . | . . . Recycled Matter . | . . . Retrieved Matter . | . . . Retrieved Components . | . . . Parts Scanalyzed . | . . . Part Schematics Acquired . | . . . Parts Damaged . | . . . Bothacking | -11 -10 -10 ------------ Run | Yrd Mat Sub Used RIF Installer . | . . . Robots Hacked . | . . . Non-combat . | . . . Combat . | . . . Robot Hacks Applied . | . . . Relay Couplers Released . | . . . Fabnet Peak Effective % . | . . . Robots Rewired . | . . . Allies Hacked . | . . . Hacks Repelled . | . . . Allies | -11 -10 -10 -------- Run | Yrd Mat Sub Total Allies 1 | . 1 . Largest Group 1 | . 1 . Highest-Rated Group 10 | . 10 . Highest-Rated Ally 10 | . 10 . Total Orders . | . . . Ally Attacks . | . . . Total Damage . | . . . Kills . | . . . Allies Corrupted . | . . . Allies Melted . | . . . Intel | -11 -10 -10 ------- Run | Yrd Mat Sub Robot Analysis Total 1 | . 1 . Derelict Logs Recovered 1 | . . 1 Drone Launches . | . . . Drone Recoveries . | . . . Exploration | -11 -10 -10 ------------- Run | Yrd Mat Sub Turns Passed 3483 | 69 1743 1671 Spaces Moved 2342 | 56 1233 1053 Core 18 | 18 . . Treads . | . . . Legs 2270 | 38 1233 999 Wheels 54 | . . 54 Hover . | . . . Flight . | . . . Fastest Speed 50 | 50 120 110 Average Speed 129 | 97 120 141 Slowest Speed 190 | 120 120 190 Overloaded Moves . | . . . Propulsion Burnouts . | . . . Robots Hopped . | . . . Cave-ins Triggered . | . . . Exploration Rate (%) 49 | 3 100 45 Regions Visited 2 Branch Regions 1 Pre-discovered Areas . | . . . Known Exits Taken . | . . . Unknown Exits Taken 2 | 1 1 . Scrap Searched 6 | . . 6 Spaces Dug . | . . . Terrain Destroyed 51 | . 3 48 Melee . | . . . Projectile . | . . . AOE 51 | . 3 48 Terrain Rammed . | . . . Walls Destroyed . | . . . Machines Disabled . | . . . Actions | -11 -10 -10 --------- Run | Yrd Mat Sub Total 2633 | 67 1394 1172 Wait 100 | . 55 45 Move 2340 | 55 1232 1053 Hop . | . . . Pick Up 26 | 6 15 5 Fast Attach 24 | 6 8 10 Attach 3 | . 1 2 Detach 1 | . . 1 Swap 10 | . 5 5 Drop 28 | . 20 8 Fire 97 | . 57 40 Melee . | . . . Ram . | . . . Kick 1 | . 1 . Crush . | . . . Escape Stasis . | . . . Rewire . | . . . Trap . | . . . Miscellaneous 3 | . . 3 Route ------- -11/Scrapyard -10/Materials (discovered 5 exits: [*Mat x3] / *Min / *Sub) -10/Subcaves (discovered 2 exits: [*Mat] / Rec) History --------- Turn | Location | Event 4 | -11/Scrapyard | Discovered new exit (range 16) 70 | -11/Scrapyard | Entered Materials 132 | -10/Materials | Central database locked down 175 | -10/Materials | Discovered new exit (range 16) 316 | -10/Materials | Build established: Mutant 500 | -10/Materials | Discovered new exit (range 16) 715 | -10/Materials | Discovered new exit (range 6) 1070 | -10/Materials | Derelicts attacked the area 1177 | -10/Materials | Discovered new exit (range 14) 1187 | -10/Materials | Build established: Scavenger-Mutant 1464 | -10/Materials | Identified exit to Mines 1561 | -10/Materials | Build established: Mutant 1798 | -10/Materials | Discovered new exit (range 5) 1813 | -10/Materials | Entered Subcaves 1828 | -10/Subcaves | Shifting Twisted Machinery released Riot Gun 1840 | -10/Subcaves | Shifting Twisted Machinery released Battle Rifle 1881 | -10/Subcaves | Core integrity fell below 50% 2025 | -10/Subcaves | A swath of the cavern ceiling suddenly collapsed 2167 | -10/Subcaves | Shifting Twisted Machinery released Sub. Power Source 2212 | -10/Subcaves | Shifting Twisted Machinery released Piercing Trap 2311 | -10/Subcaves | Learned location of 1 exit from Materials 2322 | -10/Subcaves | Discovered new exit (range 13) 2387 | -10/Subcaves | A Subdweller sparked back to life 2387 | -10/Subcaves | A Subdweller sparked back to life 2387 | -10/Subcaves | A Subdweller sparked back to life 2424 | -10/Subcaves | Found Prototype Processor 2424 | -10/Subcaves | Identified Rainbow Chip 2425 | -10/Subcaves | Attached Rainbow Chip, gained temporary slots: Power, Propulsion, Utility, Weapon 2441 | -10/Subcaves | Lost 4 parts (1p1u2w) 2563 | -10/Subcaves | Core integrity fell below 20% 2852 | -10/Subcaves | Visited Clippyterm 2855 | -10/Subcaves | Identified exit to Recycling 3008 | -10/Subcaves | Build established: Scavenger-Tank 3426 | -10/Subcaves | Lost 5 parts (1p1n1u2w) 3484 | -10/Subcaves | Destroyed by F6-QN2(R) with Subdweller Machine Gun Last Messages --------------- 03239_ 5F-YHW(u) deconstructs Twisted Machinery. 03378_ Sub. Power Source destroyed. 03379_ QE-H6T(R) destroyed. 03384_ Acquired 4 matter. 03387_ Acquired Sub. Monowheel. 03389_ Aluminum Leg destroyed. 03393_ Sub. Machine Gun destroyed. 03393_ Rainbow Chip destroyed. 03393_ Temporary Power slot lost. 03393_ Temporary Propulsion slot lost. 03393_ Temporary Weapon slot lost. 03395_ Grenade Launcher destroyed. 03395_ QZ-9O3(R) destroyed. 03454_ G-34 Mercenary destroyed. 03456_ Acquired 35 matter. 03459_ Aluminum Leg fries itself beyond repair. 03461_ Acquired Sml. Laser. 03467_ Acquired 13 matter. Map ----- +----------------------------------------------------+ | ?????? "?????????????????????????????????????? | | ?????? " "#?????????????????????????????????????? | | #???## #?????????????????????????????????????? | | #### " #?????????????????????????????????????? | | " #?????????????????????????????????????? | | ##????????????????????????????????????? | | ?????????????????????????????????????? | | ?? " #?##???????????????????????????????????? | | ???# #### ######?????????????????????????????? | | ???# #?????????????????????????????? | | ???# #?????????????????????????????? | | ???# #?????????????????????????????? | | ???## "#####?????????????????????????? | | ##### # [ #"# #?????????????????????????? | | ## # & #??????????????????????????? | | "" & " ##?????????????????????????? | | " ! ## #?????????????????????????? | | [%& ## # ## ##?????????????????????????? | | & ## ## "" ##?????????????????????????? | | ### ### ### """ #?????????????????????????? | | # ### #### #?## " ######????????????????????? | | ### ### ##?# ### """#????????????????????? | | ### ### #?#"##?#" #????????????????????? | | ## % ##?###??#""R #????????????????????? | | #% ###"#???????# " R ##???????????????????? | | "" ##?###???????# @ #???#???????????????? | | "" ###????????????## ## #???????????????? | | #" ###??????????????# #????????????????? | | ######????????????????# ## # #???????????????? | | #?????????????????????# ##?# #????????????????? | | ##????????????????????# #??? #???????????????? | | #????????????????????# ## ???? *??????????????? | | "#????????????????????##?# ?????&%!?????????????? | | "######??????????????????###??????# #????????????? | | "" #???????????????????????????? #???????????? | | #""% #????????????????????????????# #??????????? | | ?## #?????????????????????????????# ??????????? | | #?? ##???????????????????????????????=?????????? | | #????##?????????????????????????????????#????????? | | #???????????????????????????????????????????????? | | ##???????????????????????????????????????????????? | | ?????????????????????????????????????????????????? | | ?????????????????????????????????????????????????? | | ?????????????????????????????????????????????????? | | ?????????????????????????????????????????????????? | | ?????????????????????????????????????????????????? | | ?????????????????????????????????????????????????? | | ?????????????????????????????????????????????????? | | ?????????????????????????????????????????????????? | | ?????????????????????????????????????????????????? | +----------------------------------------------------+ Best States ------------- Heat Dissipation 25 Coolant Potential 50 Energy Generation 15 Energy Capacity 250 Matter Stores 300 Matter Capacity 300 Sight Range 21 Terrain Scan Density 10 Armor Coverage 800 Evasion (%) 55 Item Schematics ----------------- None Robot Schematics ------------------ None Fabricated ------------ Nothing Alien Tech Used ----------------- None Achievements -------------- None Challenges ------------ None Game ------ Seed LinkedMakeshiftInjector Manual? 0 Play Time 00:31:58 Cumulative 54.9 hours Start 2025.03.03 @ 23:16:44 End 2025.03.04 @ 18:10:44 Sessions 5 Manual Loads 0 Difficulty Rogue Special Mode None Game No. 56 Rogue 56 Adventurer 0 Explorer 0 Win Type - Total 1 Types 1/0/0/0/0/0/0/0/0 Lore% 29 Gallery% 39 Achievement% 38 Wizard Run 0 Options --------- Layout 1 ASCII 0 Keyboard 1 Movement Numpad Keybinds 0 Fullscreen 1 Font 24/Smallcaps Map View 50x35 Zoom Use 0% Tactical HUD 1 Map Filters NONE Filters NONE Steam 1 RUN: 504c90a6-edbd-4af3-afad-25b0c82d7cce